fUST/lending_fUST_20240708
["ID","MTS","AMOUNT","RATE_DAILY","PERIOD"]
[331420525,1720372239758,-500.0,0.00044519,120]
[331420526,1720372239768,-500.0,0.00044519,120]
[331420527,1720372239778,-500.0,0.00044519,120]
[331420528,1720372239791,-500.0,0.00044519,120]
[331420529,1720372239803,-500.0,0.00044519,120]
[331420530,1720372239814,-500.0,0.00044519,120]
[331420531,1720372239824,-500.0,0.00044519,120]
[331420532,1720372239836,-500.0,0.00044519,120]
[331420533,1720372239846,-500.0,0.00044519,120]
[331420534,1720372239858,-500.0,0.00044519,120]
[331420535,1720372239871,-500.0,0.00044519,120]
[331420536,1720372239883,-500.0,0.00044519,120]
[331420537,1720372239893,-500.0,0.00044519,120]
[331420538,1720372239903,-500.0,0.00044519,120]
[331420539,1720372239913,-459.71670259,0.00044519,120]
[331420540,1720372239923,-272.53314862,0.00044519,120]
[331420541,1720372239934,-500.0,0.00044519,120]
[331420542,1720372239945,-500.0,0.00044519,120]
[331420543,1720372239956,-500.0,0.00044519,120]
[331420544,1720372239967,-500.0,0.00044519,120]
[331420545,1720372239977,-1326.43,0.0004452,120]
[331420546,1720372240113,-154.98563256,0.00045185,30]
[331420547,1720372240126,-1326.43,0.00045205,120]
[331420548,1720372240136,-327.124892,0.00045494,2]
[331420549,1720372240145,-280.66040776,0.00045675,2]
[331420550,1720372240155,-150.0,0.00045875,2]
[331420551,1720372240165,-1405.0,0.00045888,2]
[331420552,1720372240175,-1326.43,0.0004589,120]
[331420553,1720372240185,-488.79492918,0.00046,120]
[331420554,1720372240194,-1326.43,0.00046575,120]
[331420555,1720372240204,-153.0,0.00047123,120]
[331420556,1720372240214,-153.0,0.00047123,120]
[331420558,1720372240224,-1326.43,0.0004726,120]
[331420559,1720372240234,-1326.43,0.00047945,120]
[331420560,1720372240244,-488.79492918,0.00048,120]
[331420561,1720372240254,-154.98563256,0.00048288,30]
[331420562,1720372240263,-1326.43,0.0004863,120]
[331420563,1720372240273,-1405.0,0.00048888,2]
[331420564,1720372240282,-20133.77231562,0.0004889,6]
[331420565,1720372240344,-1452.55757878,0.0004889,6]
[331420566,1720372240354,-69693.36680028,0.000489,30]
[331420567,1720372240363,-443151.70015073,0.000489,15]
[331420568,1720372241431,860.5161812,0.00012,2]
[331420571,1720372242356,-311.33765255,0.00016155,2]
[331420572,1720372242365,-999.0,0.00042465,120]
[331420573,1720372242375,-999.0,0.0004315,120]
[331420574,1720372242385,-999.0,0.00043835,120]
[331420575,1720372242395,-999.0,0.0004452,120]
[331420576,1720372242404,-999.0,0.00045205,120]
[331420578,1720372242414,-999.0,0.0004589,120]
[331420580,1720372242423,-309970.30486098,0.000489,15]
[331420582,1720372242432,-21586.3298944,0.0004899,6]
[331420584,1720372242441,-10000.0,0.00049,49]
[331420586,1720372242451,-154.98563256,0.00049147,30]
[331420588,1720372242460,-339.99751608,0.00049215,2]
[331420590,1720372242469,-35155.50507154,0.00049305,61]
[331420592,1720372242479,-86345.3195777,0.00049305,6]
[331420594,1720372242489,-500.0,0.00049315,2]
[331420596,1720372242498,-500.0,0.00049315,2]
[331420598,1720372242507,-500.0,0.00049315,2]
[331420599,1720372242517,-500.0,0.00049315,2]
[331420600,1720372242527,-500.0,0.00049315,2]
[331420601,1720372242536,-500.0,0.00049315,2]
[331420602,1720372242546,-500.0,0.00049315,2]
[331420603,1720372242555,-500.0,0.00049315,2]
[331420604,1720372242565,-500.0,0.00049315,2]
[331420605,1720372242575,-500.0,0.00049315,2]
[331420606,1720372242585,-500.0,0.00049315,2]
[331420607,1720372242595,-500.0,0.00049315,2]
[331420608,1720372242605,-500.0,0.00049315,2]
[331420609,1720372242614,-180.58868514,0.00049315,2]
[331420610,1720372242623,-500.0,0.00049315,120]
[331420611,1720372242632,-500.0,0.00049315,120]
[331420612,1720372242642,-500.0,0.00049315,120]
[331420613,1720372242652,-500.0,0.00049315,120]
[331420614,1720372242661,-500.0,0.00049315,120]
[331420615,1720372242670,-500.0,0.00049315,120]
[331420616,1720372242680,-500.0,0.00049315,120]
[331420617,1720372242690,-472.5815,0.00049315,120]
[331420618,1720372242700,-504.62301876,0.00049315,120]
[331420619,1720372242709,-506.58854923,0.00049315,120]
[331420620,1720372242719,-500.0,0.00049315,120]
[331420621,1720372242729,-251.90378244,0.00049315,120]
[331420622,1720372242738,-151.0,0.00049315,14]
[331420623,1720372242748,-151.0,0.00049315,14]
[331420624,1720372242757,-500.0,0.00049315,2]
[331420625,1720372242766,-500.0,0.00049315,2]
[331420626,1720372242775,-500.0,0.00049315,2]
[331420627,1720372242784,-500.0,0.00049315,2]
[331420628,1720372242798,-500.0,0.00049315,2]
[331420629,1720372242807,-500.0,0.00049315,2]
[331420630,1720372242817,-500.0,0.00049315,2]
[331420631,1720372242826,-500.0,0.00049315,2]
[331420632,1720372242836,-500.0,0.00049315,120]
[331420633,1720372242845,-317.57389514,0.00049315,120]
[331420634,1720372242855,-509.23430185,0.00049315,120]
[331420635,1720372242865,-506.16353749,0.00049315,120]
[331420636,1720372242876,-983.0,0.00049315,120]
[331420637,1720372242885,-983.0,0.00049315,120]
[331420638,1720372242894,-983.0,0.00049315,120]
[331420639,1720372242904,-983.0,0.00049315,120]
[331420640,1720372242914,-983.0,0.00049315,120]
[331420641,1720372242924,-983.0,0.00049315,120]
[331420642,1720372242933,-983.0,0.00049315,120]
[331420643,1720372242943,-983.0,0.00049315,120]
[331420644,1720372242955,-983.0,0.00049315,120]
[331420645,1720372242965,-983.0,0.00049315,120]
[331420646,1720372242975,-983.0,0.00049315,120]
[331420647,1720372242985,-983.0,0.00049315,120]
[331420649,1720372242994,-983.0,0.00049315,120]
[331420651,1720372243003,-983.0,0.00049315,120]
[331420653,1720372243013,-983.0,0.00049315,120]
[331420655,1720372243022,-983.0,0.00049315,120]
[331420658,1720372243031,-983.0,0.00049315,120]
[331420660,1720372243040,-983.0,0.00049315,120]
[331420662,1720372243050,-983.0,0.00049315,120]
[331420664,1720372243059,-151.50933,0.00049315,14]
[331420666,1720372243068,-500.0,0.00049315,120]
[331420668,1720372243077,-500.0,0.00049315,120]
[331420670,1720372243087,-500.0,0.00049315,120]
[331420672,1720372243096,-500.0,0.00049315,120]
[331420674,1720372243106,-500.0,0.00049315,120]
[331420676,1720372243116,-500.0,0.00049315,120]
[331420677,1720372243125,-500.0,0.00049315,120]
[331420679,1720372243134,-500.0,0.00049315,120]
[331420681,1720372243143,-500.0,0.00049315,120]
[331420683,1720372243152,-599.01908386,0.00049315,120]
[331420685,1720372243162,-1145.43,0.00049315,120]
[331420687,1720372243171,-1145.43,0.00049315,120]
[331420689,1720372243180,-1145.43,0.00049315,120]
[331420690,1720372243189,-1145.43,0.00049315,120]
[331420691,1720372243200,-1145.43,0.00049315,120]
[331420692,1720372243209,-1145.43,0.00049315,120]
[331420693,1720372243218,-1145.43,0.00049315,120]
[331420694,1720372243227,-1145.43,0.00049315,120]
[331420695,1720372243238,-1145.43,0.00049315,120]
[331420696,1720372243247,-1145.43,0.00049315,120]
[331420697,1720372243257,-1145.43,0.00049315,120]
[331420698,1720372243266,-1145.43,0.00049315,120]
[331420701,1720372243275,-1145.43,0.00049315,120]
[331420704,1720372243285,-1145.43,0.00049315,120]
[331420707,1720372243294,-1145.43,0.00049315,120]
[331420709,1720372243303,-1145.43,0.00049315,120]
[331420711,1720372243312,-1145.43,0.00049315,120]
[331420712,1720372243321,-1145.43,0.00049315,120]
[331420715,1720372243331,-1145.43,0.00049315,120]
[331420716,1720372243340,-1145.43,0.00049315,120]
[331420717,1720372243349,-1145.43,0.00049315,120]
[331420718,1720372243359,-1145.43,0.00049315,120]
[331420719,1720372243368,-1145.43,0.00049315,120]
[331420720,1720372243378,-500.0,0.00049315,120]
[331420721,1720372243387,-1145.62015154,0.00049315,120]
[331420722,1720372243396,-500.0,0.00049315,120]
[331420723,1720372243404,-500.0,0.00049315,120]
[331420724,1720372243414,-500.0,0.00049315,120]
[331420725,1720372243423,-500.0,0.00049315,120]
[331420726,1720372243432,-500.0,0.00049315,120]
[331420727,1720372243441,-500.0,0.00049315,120]
[331420728,1720372243451,-500.0,0.00049315,120]
[331420729,1720372243460,-500.0,0.00049315,120]
[331420730,1720372243469,-500.0,0.00049315,120]
[331420731,1720372243478,-500.0,0.00049315,120]
[331420732,1720372243487,-500.0,0.00049315,120]
[331420733,1720372243496,-500.0,0.00049315,120]
[331420734,1720372243505,-500.0,0.00049315,120]
[331420735,1720372243514,-500.0,0.00049315,120]
[331420736,1720372243524,-500.0,0.00049315,120]
[331420737,1720372243533,-500.0,0.00049315,120]
[331420738,1720372243542,-500.0,0.00049315,120]
[331420739,1720372243551,-500.0,0.00049315,120]
[331420740,1720372243560,-500.0,0.00049315,120]
[331420741,1720372243569,-220.39723453,0.00049315,120]
[331420742,1720372243578,-500.0,0.00049315,120]
[331420743,1720372243589,-500.0,0.00049315,120]
[331420744,1720372243598,-500.0,0.00049315,120]
[331420745,1720372243607,-535.39398921,0.00049315,120]
[331420746,1720372243616,-500.0,0.00049315,7]
[331420747,1720372243625,-500.0,0.00049315,7]
[331420748,1720372243634,-500.0,0.00049315,7]
[331420749,1720372243644,-558.67777589,0.00049315,120]
[331420750,1720372243653,-500.0,0.00049315,7]
[331420751,1720372243662,-500.0,0.00049315,7]
[331420752,1720372243671,-500.0,0.00049315,7]
[331420753,1720372243680,-500.0,0.00049315,7]
[331420754,1720372243690,-500.0,0.00049315,7]
[331420755,1720372243700,-500.0,0.00049315,7]
[331420756,1720372243709,-500.0,0.00049315,7]
[331420757,1720372243719,-500.0,0.00049315,7]
[331420758,1720372243728,-558.20932953,0.00049315,7]
[331420759,1720372243737,-205.65458068,0.00049315,120]
[331420760,1720372243746,-833.33,0.00049315,120]
[331420761,1720372243755,-833.33,0.00049315,120]
[331420762,1720372243765,-833.33,0.00049315,120]
[331420763,1720372243775,-833.33,0.00049315,120]
[331420764,1720372243785,-833.33,0.00049315,120]
[331420765,1720372243800,-833.33,0.00049315,120]
[331420766,1720372243810,-833.33,0.00049315,120]
[331420767,1720372243820,-833.33,0.00049315,120]
[331420768,1720372243831,-833.33,0.00049315,120]
[331420769,1720372243841,-833.33,0.00049315,120]
[331420770,1720372243851,-833.33,0.00049315,120]
[331420771,1720372243862,-833.33,0.00049315,120]
[331420772,1720372243874,-833.33,0.00049315,120]
[331420773,1720372243884,-833.33,0.00049315,120]
[331420774,1720372243893,-833.33,0.00049315,120]
[331420775,1720372243903,-833.33,0.00049315,120]
[331420776,1720372243912,-833.33,0.00049315,120]
[331420777,1720372243921,-833.33,0.00049315,120]
[331420778,1720372243931,-833.33,0.00049315,120]
[331420779,1720372243940,-833.33,0.00049315,120]
[331420780,1720372243952,-833.33,0.00049315,120]
[331420781,1720372243962,-833.33,0.00049315,120]
[331420782,1720372243974,-833.33,0.00049315,120]
[331420783,1720372243983,-833.41,0.00049315,120]
[331420784,1720372243992,-500.0,0.00049315,120]
[331420785,1720372244002,-500.0,0.00049315,120]
[331420786,1720372244012,-500.0,0.00049315,120]
[331420787,1720372244022,-500.0,0.00049315,120]
[331420788,1720372244031,-500.0,0.00049315,120]
[331420789,1720372244041,-500.0,0.00049315,120]
[331420790,1720372244051,-500.0,0.00049315,120]
[331420791,1720372244061,-564.132538,0.00049315,120]
[331420792,1720372244071,-151.0,0.00049315,14]
[331420793,1720372244081,-500.0,0.00049315,120]
[331420794,1720372244092,-500.0,0.00049315,120]
[331420795,1720372244102,-500.0,0.00049315,120]
[331420796,1720372244111,-500.0,0.00049315,120]
[331420797,1720372244121,-500.0,0.00049315,120]
[331420798,1720372244130,-500.0,0.00049315,120]
[331420799,1720372244140,-151.0,0.00049315,14]
[331420800,1720372244149,-500.0,0.00049315,120]
[331420801,1720372244159,-500.0,0.00049315,120]
[331420802,1720372244168,-502.92035483,0.00049315,120]
[331420803,1720372244178,-2009.91,0.00049315,120]
[331420804,1720372244187,-151.0,0.00049315,14]
[331420805,1720372244198,-500.0,0.00049315,120]
[331420806,1720372244209,-151.0,0.00049315,14]
[331420807,1720372244218,-97.17037029,0.00049315,120]
[331420808,1720372244234,-402.82962971,0.00049315,120]
[331420809,1720372244244,-500.0,0.00049589,120]
[331420810,1720372244253,-328.67,0.00049589,120]
[331420811,1720372244263,-500.0,0.00049589,120]
[331420812,1720372244272,-477.9243526,0.00049589,120]
[331420813,1720372244282,-500.0,0.00049589,120]
[331420814,1720372244291,-500.0,0.00049589,120]
[331420815,1720372244300,-633.64775468,0.00049589,120]
[331420816,1720372244310,-500.0,0.00049589,120]
[331420817,1720372244319,-2009.91,0.00049589,120]
[331420818,1720372244329,-500.0,0.00049589,120]
[331420819,1720372244339,-72.26871093,0.00049589,120]
[331420820,1720372244430,-427.73128907,0.00049589,120]
[331420821,1720372244440,-154.98563256,0.00049671,30]
[331420822,1720372244450,-500.0,0.00049863,120]
[331420823,1720372244459,-563.60252373,0.00049863,120]
[331420824,1720372244469,-500.0,0.00049863,120]
[331420825,1720372244479,-500.0,0.00049863,120]
[331420826,1720372244488,-500.0,0.00049863,120]
[331420827,1720372244498,-2009.91,0.00049863,120]
[331420828,1720372244507,-500.0,0.00049863,120]
[331420829,1720372244516,-500.0,0.00049863,120]
[331420830,1720372244525,-10000.0,0.0005,50]
[331420831,1720372244535,-154.66746495,0.0005,30]
[331420832,1720372244544,-21586.3298944,0.0005009,6]
[331420833,1720372244554,-3000.0,0.000501,120]
[331420834,1720372244563,-500.0,0.00050136,120]
[331420835,1720372244572,-500.0,0.00050136,120]
[331420836,1720372244581,-500.0,0.00050136,120]
[331420837,1720372244591,-500.0,0.00050136,120]
[331420838,1720372244600,-2009.91,0.00050136,120]
[331420839,1720372244610,-500.0,0.00050136,120]
[331420840,1720372244619,-500.0,0.00050136,120]
[331420841,1720372244628,-500.0,0.0005041,120]
[331420842,1720372244637,-500.0,0.0005041,120]
[331420843,1720372244646,-500.0,0.0005041,120]
[331420844,1720372244656,-500.0,0.0005041,120]
[331420845,1720372244665,-2009.91,0.0005041,120]
[331420846,1720372244674,-500.0,0.0005041,120]
[331420847,1720372244683,-500.0,0.0005041,120]
[331420848,1720372244692,-310.0,0.00050497,30]
[331420849,1720372244703,-310.0,0.00050497,30]
[331420850,1720372244712,-310.0,0.00050497,30]
[331420851,1720372244721,-452.655239,0.00050497,30]
[331420852,1720372244731,-150.66852924,0.00050563,2]
[331420853,1720372244740,-500.0,0.00050684,120]
[331420854,1720372244750,-500.0,0.00050684,120]
[331420855,1720372244759,-490.8415862,0.00050684,120]
[331420856,1720372244768,-500.0,0.00050684,120]
[331420857,1720372244778,-2009.91,0.00050684,120]
[331420858,1720372244789,-542.74236587,0.00050684,120]
[331420859,1720372244800,-500.0,0.00050684,120]
[331420860,1720372244809,-154.76146562,0.00050834,82]
[331420861,1720372244820,-500.0,0.00050958,120]
[331420862,1720372244829,-500.0,0.00050958,120]
[331420863,1720372244841,-500.0,0.00050958,120]
[331420864,1720372244850,-2009.91,0.00050958,120]
[331420865,1720372244859,-500.0,0.00050958,120]
[331420866,1720372244871,-983.0,0.00050989,120]
[331420867,1720372244881,-983.0,0.00050989,120]
[331420868,1720372244891,-983.0,0.00050989,120]
[331420869,1720372244901,-983.0,0.00050989,120]
[331420870,1720372244910,-983.11262256,0.00050989,120]
[331420871,1720372244920,-10000.0,0.00051,51]
[331420872,1720372244929,-151.0,0.00051,120]
[331420873,1720372244939,-3000.0,0.00051,85]
[331420874,1720372244949,-227.405288,0.00051,120]
[331420875,1720372244959,-5068.87846,0.0005101,85]
[331420876,1720372244968,-500.0,0.00051232,120]
[331420877,1720372244977,-500.0,0.00051232,120]
[331420878,1720372244986,-359.64,0.00051232,120]
[331420879,1720372244995,-2009.91,0.00051232,120]
[331420880,1720372245005,-500.0,0.00051232,120]
[331420881,1720372245014,-150.0,0.00051499,60]
[331420882,1720372245024,-148345.209999,0.000515,120]
[331420883,1720372245033,-151.0,0.000515,120]
[331420884,1720372245042,-188.301598,0.000515,120]
[331420885,1720372245052,-500.0,0.00051506,120]
[331420886,1720372245061,-500.0,0.00051506,120]
[331420887,1720372245070,-2009.91,0.00051506,120]
[331420888,1720372245079,-500.0,0.00051506,120]
[331420889,1720372245088,-327.124892,0.00051593,2]
[331420890,1720372245098,-752.50830027,0.000517,120]
[331420891,1720372245107,-500.0,0.0005178,120]
[331420892,1720372245116,-500.0,0.0005178,120]
[331420893,1720372245126,-2009.91,0.0005178,120]
[331420894,1720372245135,-500.0,0.0005178,120]
[331420895,1720372245145,-373.0,0.000518,30]
[331420896,1720372245155,-1028.01532245,0.000518,120]
[331420897,1720372245164,-80888.60369769,0.0005186,30]
[331420919,1720372258286,789.859108,0.00014,2]
[331420920,1720372322437,-425.41247873,0.00016969,2]
[331420921,1720372322573,-307.94962744,0.00019,2]
[331420922,1720372335087,179.07578153,0.00016969,2]
[331420923,1720372335118,658.76623873,0.00016969,2]
[331420924,1720372430121,273.37336231,9.9e-05,2]
[331420925,1720372437894,273.37336231,9.9e-05,2]
[331420926,1720372446094,273.37336231,9.9e-05,2]
[331420927,1720372453954,273.37336231,9.9e-05,2]
[331420928,1720372462234,273.37336231,9.9e-05,2]
[331420929,1720372470068,273.37336231,9.9e-05,2]
[331420930,1720372478704,273.37336231,9.9e-05,2]
[331420931,1720372487174,273.37336231,9.9e-05,2]
[331420932,1720372495902,273.37336231,9.9e-05,2]
[331420933,1720372505005,273.37336231,9.9e-05,2]
[331420935,1720372513758,273.37336231,9.9e-05,2]
[331420936,1720372522403,273.37336231,9.9e-05,2]
[331420937,1720372530622,273.37336231,9.9e-05,2]
[331420938,1720372539366,273.37336231,9.9e-05,2]
[331420939,1720372548741,273.37336231,9.9e-05,2]
[331420940,1720372556946,273.37336231,9.9e-05,2]
[331420941,1720372564820,273.37336231,9.9e-05,2]
[331420942,1720372573146,273.37336231,9.9e-05,2]
[331420943,1720372581657,273.37336231,9.9e-05,2]
[331420944,1720372589764,273.37336231,9.9e-05,2]
[331420945,1720372589796,825.44943224,0.00014999,2]
[331420947,1720372597608,273.37336231,9.9e-05,2]
[331420948,1720372606240,273.37336231,9.9e-05,2]
[331420949,1720372614198,273.37336231,9.9e-05,2]
[331420950,1720372622544,2119.19722407,0.00012,2]
[331420951,1720372622835,273.37336231,9.9e-05,2]
[331420952,1720372631291,273.37336231,9.9e-05,2]
[331420953,1720372640439,273.37336231,9.9e-05,2]
[331420954,1720372648317,273.37336231,9.9e-05,2]
[331420955,1720372657083,273.37336231,9.9e-05,2]
[331420956,1720372664983,273.37336231,9.9e-05,2]
[331420957,1720372666550,2119.19722407,0.00012,2]
[331420958,1720372673070,273.37336231,9.9e-05,2]
[331420959,1720372681788,273.37336231,9.9e-05,2]
[331420960,1720372689965,273.37336231,9.9e-05,2]
[331420961,1720372698986,273.37336231,9.9e-05,2]
[331420962,1720372707713,273.37336231,9.9e-05,2]
[331420964,1720372716037,273.37336231,9.9e-05,2]
[331420965,1720372724166,273.37336231,9.9e-05,2]
[331420966,1720372732002,273.37336231,9.9e-05,2]
[331420967,1720372740118,273.37336231,9.9e-05,2]
[331420968,1720372741571,991.84939256,0.00012,2]
[331420969,1720372747992,273.37336231,9.9e-05,2]
[331420970,1720372756616,273.37336231,9.9e-05,2]
[331420971,1720372768299,273.37336231,9.9e-05,2]
[331420972,1720372777087,273.37336231,9.9e-05,2]
[331420973,1720372785445,273.37336231,9.9e-05,2]
[331420974,1720372794436,273.37336231,9.9e-05,2]
[331420975,1720372802408,273.37336231,9.9e-05,2]
[331420976,1720372811133,273.37336231,9.9e-05,2]
[331420977,1720372819077,273.37336231,9.9e-05,2]
[331420978,1720372828452,273.37336231,9.9e-05,2]
[331420979,1720372836312,273.37336231,9.9e-05,2]
[331420980,1720372844419,273.37336231,9.9e-05,2]
[331420981,1720372852402,273.37336231,9.9e-05,2]
[331420982,1720372860472,273.37336231,9.9e-05,2]
[331420983,1720372869264,273.37336231,9.9e-05,2]
[331420984,1720372877791,273.37336231,9.9e-05,2]
[331420985,1720372892335,273.37336231,9.9e-05,2]
[331420986,1720372901191,273.37336231,9.9e-05,2]
[331420987,1720372909017,273.37336231,9.9e-05,2]
[331420988,1720372917235,273.37336231,9.9e-05,2]
[331420989,1720372925733,273.37336231,9.9e-05,2]
[331420990,1720372933790,273.37336231,9.9e-05,2]
[331420991,1720372941950,273.37336231,9.9e-05,2]
[331420992,1720372950064,273.37336231,9.9e-05,2]
[331420994,1720372958112,273.37336231,9.9e-05,2]
[331420995,1720372966237,273.37336231,9.9e-05,2]
[331420996,1720372974074,273.37336231,9.9e-05,2]
[331420997,1720372982280,273.37336231,9.9e-05,2]
[331420998,1720372991349,273.37336231,9.9e-05,2]
[331420999,1720373000072,273.37336231,9.9e-05,2]
[331421000,1720373008038,273.37336231,9.9e-05,2]
[331421001,1720373016143,273.37336231,9.9e-05,2]
[331421002,1720373025181,273.37336231,9.9e-05,2]
[331421003,1720373033236,273.37336231,9.9e-05,2]
[331421004,1720373041121,273.37336231,9.9e-05,2]
[331421005,1720373049335,273.37336231,9.9e-05,2]
[331421006,1720373057475,273.37336231,9.9e-05,2]
[331421007,1720373065523,273.37336231,9.9e-05,2]
[331421008,1720373073370,273.37336231,9.9e-05,2]
[331421009,1720373081408,273.37336231,9.9e-05,2]
[331421010,1720373089912,273.37336231,9.9e-05,2]
[331421011,1720373097981,273.37336231,9.9e-05,2]
[331421012,1720373106642,273.37336231,9.9e-05,2]
[331421013,1720373115396,273.37336231,9.9e-05,2]
[331421014,1720373123258,273.37336231,9.9e-05,2]
[331421015,1720373132239,273.37336231,9.9e-05,2]
[331421016,1720373134182,-3000.0,0.00015811,2]
[331421017,1720373134205,-187.66006725,0.00016154,2]
[331421018,1720373134224,-272.42044599,0.00016155,2]
[331421019,1720373134243,-300.0,0.00016254,2]
[331421020,1720373134262,-300.0,0.00016254,2]
[331421021,1720373134282,-28879.98132599,0.00016255,2]
[331421022,1720373140708,273.37336231,9.9e-05,2]
[331421023,1720373148798,273.37336231,9.9e-05,2]
[331421024,1720373157312,273.37336231,9.9e-05,2]
[331421025,1720373165995,273.37336231,9.9e-05,2]
[331421026,1720373173886,273.37336231,9.9e-05,2]
[331421027,1720373180244,154.85288975,0.00012,2]
[331421028,1720373182515,273.37336231,9.9e-05,2]
[331421029,1720373190358,273.37336231,9.9e-05,2]
[331421030,1720373190439,155.11031179,0.00012,2]
[331421031,1720373198504,273.37336231,9.9e-05,2]
[331421032,1720373206341,273.37336231,9.9e-05,2]
[331421033,1720373214618,273.37336231,9.9e-05,2]
[331421034,1720373223694,273.37336231,9.9e-05,2]
[331421035,1720373231934,273.37336231,9.9e-05,2]
[331421036,1720373240617,273.37336231,9.9e-05,2]
[331421037,1720373248991,273.37336231,9.9e-05,2]
[331421038,1720373257773,273.37336231,9.9e-05,2]
[331421039,1720373266377,273.37336231,9.9e-05,2]
[331421040,1720373274425,273.37336231,9.9e-05,2]
[331421041,1720373282320,273.37336231,9.9e-05,2]
[331421042,1720373290426,273.37336231,9.9e-05,2]
[331421043,1720373298501,273.37336231,9.9e-05,2]
[331421044,1720373306406,273.37336231,9.9e-05,2]
[331421045,1720373315158,273.37336231,9.9e-05,2]
[331421046,1720373323019,273.37336231,9.9e-05,2]
[331421047,1720373331108,273.37336231,9.9e-05,2]
[331421048,1720373334490,235.98665796,0.00012,2]
[331421049,1720373339140,273.37336231,9.9e-05,2]
[331421050,1720373347444,273.37336231,9.9e-05,2]
[331421051,1720373355402,273.37336231,9.9e-05,2]
[331421052,1720373363989,273.37336231,9.9e-05,2]
[331421053,1720373372192,273.37336231,9.9e-05,2]
[331421054,1720373380882,273.37336231,9.9e-05,2]
[331421058,1720373389004,273.37336231,9.9e-05,2]
[331421059,1720373397780,273.37336231,9.9e-05,2]
[331421060,1720373406291,273.37336231,9.9e-05,2]
[331421062,1720373414639,273.37336231,9.9e-05,2]
[331421063,1720373422637,273.37336231,9.9e-05,2]
[331421064,1720373430957,273.37336231,9.9e-05,2]
[331421077,1720373437888,-300.0,0.00016254,2]
[331421078,1720373437898,-6058.57504251,0.00016255,2]
[331421079,1720373437908,-42237.40544043,0.00016255,2]
[331421080,1720373437918,-3706.83075573,0.00016255,2]
[331421081,1720373437930,-13546.25825678,0.00016255,2]
[331421082,1720373437940,-293.50584036,0.00016969,2]
[331421083,1720373437949,-420.0,0.00017766,2]
[331421084,1720373437958,-158.972317,0.00019178,2]
[331421085,1720373437968,-6581.26358586,0.00019236,2]
[331421110,1720373439253,273.37336231,9.9e-05,2]
[331421122,1720373439992,-18318.73641414,0.00019236,2]
[331421124,1720373440002,-587.0,0.0001942,2]
[331421126,1720373440013,-303.14085162,0.0002,2]
[331421127,1720373440024,-245.343669,0.00021096,2]
[331421128,1720373440035,-351.0,0.00021227,2]
[331421129,1720373440046,-10793.1649472,0.00022012,3]
[331421130,1720373440057,-30000.0,0.00022022,2]
[331421131,1720373440068,-302.22790478,0.0002217,2]
[331421132,1720373440079,-245.343669,0.00027195,2]
[331421133,1720373440090,-550.0,0.00027397,2]
[331421134,1720373440100,-158.97232,0.00030856,2]
[331421135,1720373440122,-245.343669,0.00033295,2]
[331421136,1720373440133,-9383.27033993,0.00033852,4]
[331421137,1720373440143,-4137.97007333,0.00034574,4]
[331421138,1720373440154,-1920.92,0.00035249,3]
[331421139,1720373440165,-1501.24478952,0.00035259,2]
[331421140,1720373440175,-150.0,0.000365,7]
[331421141,1720373440186,-200.12,0.000365,7]
[331421143,1720373440196,-983.75784699,0.000365,2]
[331421145,1720373440207,-238.36789023,0.00037238,2]
[331421147,1720373440223,-1063.91419342,0.00037587,2]
[331421149,1720373440234,-937.80924807,0.00037587,4]
[331421152,1720373440244,-256.67016396,0.00039177,2]
[331421154,1720373440256,-256.67016396,0.00039177,2]